Cogmind - Beta 16.1 @@@ ROGUE MODE // 2026.03.02 @ 21:40:02 Player: Zoropirates Result: Destroyed by as-84528 with Assembled Blade Performance ------------- Evolutions (0) 0 Regions Visited (2) 400 Robots Destroyed (6) 30 Value Destroyed (132) 132 Prototype IDs (2) 40 Alien Tech Used (0) 0 Bonus (-43) -43 TOTAL SCORE: 559 Bonus ------- Friendly Fire -43 Cogmind --------- Core Integrity 0/250 Matter 213/300 Energy 61/100 System Corruption 10% Temperature Cool (35) Movement Core (1400) Ox27 Location -10/Mines Parts ------- > --- POWER (1) -------- (None) > --- PROPULSION (2) --- (None) > --- UTILITY (2) ------ Huge Storage Unit Terrain Scanner > --- WEAPON (2) ------- Light Assault Rifle > --- INVENTORY (25) --- Ion Engine Light Ion Engine Small Storage Unit Core Shielding Tractor Beam Peak State ------------ > --- POWER ------------ Light Ion Engine > --- PROPULSION ------- Wheel Wheel > --- UTILITY ---------- Small Storage Unit Core Shielding > --- WEAPON ----------- Medium Laser Assault Rifle > --- INVENTORY -------- Ion Engine Light Ion Engine Light Assault Rifle Grenade Launcher Grenade Launcher [Rating: 7] Favorites ----------- Power Light Ion Engine Engine Light Ion Engine Propulsion Wheel Wheel Wheel Utility Small Storage Unit Device Terrain Scanner Storage Small Storage Unit Protection Core Shielding Weapon Assault Rifle Energy Gun Medium Laser Ballistic Gun Assault Rifle Launcher Grenade Launcher Build | -11 -10 -10 ------- Run | Yrd Mat Min Slots Evolved . | . . . Power . | . . . Propulsion . | . . . Utility . | . . . Weapon . | . . . Parts Attached 12 | 6 2 4 Power 1 | 1 . . Engine 1 | 1 . . Core . | . . . Reactor . | . . . Propulsion 2 | 2 . . Treads . | . . . Leg . | . . . Wheel 2 | 2 . . Hover . | . . . Flight . | . . . Utility 4 | 1 2 1 Device 1 | . 1 . Storage 2 | 1 . 1 Processor . | . . . Hackware . | . . . Protection 1 | . 1 . Artifact . | . . . Weapon 5 | 2 . 3 Energy Gun 1 | 1 . . Energy Cannon . | . . . Ballistic Gun 2 | 1 . 1 Ballistic Cannon . | . . . Launcher 2 | . . 2 Special Weapon . | . . . Impact Weapon . | . . . Slashing Weapon . | . . . Piercing Weapon . | . . . Special Melee Weapon . | . . . Unidentified Prototypes . | . . . Parts Lost 7 | . . 7 Power 1 | . . 1 Propulsion 2 | . . 2 Utility . | . . . Weapon 4 | . . 4 Highest Loss Streak 7 | . . 7 To Critical Strikes . | . . . Average Backups 4 | 2 4 7 Power 1 | 1 1 2 Propulsion . | . . . Utility 1 | . . 3 Weapon 1 | . 2 2 Tool/Special . | . . . Unused Backups 3 | . . 3 Power 2 | . . 2 Propulsion . | . . . Utility 1 | . . 1 Weapon . | . . . Tool/Special . | . . . Average Slot Usage (%) 91 | . 93 78 Engine 12 | . 14 7 Wheel 26 | . 28 21 Device 9 | . 8 14 Storage 14 | . 14 14 Energy Gun 12 | . 14 7 Ballistic Gun 13 | . 14 10 Peak Build Rating 7 | 6 7 7 Average Rating 6 | 3 6 5 On Entrance 4 | . 6 7 Avg Prop Armor Cover (%) . | . . . Naked Turns . | . . . Heaviest Build 13 | 12 13 13 Greatest Support 20 | 20 20 20 Greatest Overweight (x) . | . . . Average Overweight (x) . | . . . Largest Inventory Capacity 25 | 8 8 25 Average Capacity 7 | 7 8 8 Most Carried 8 | 5 8 8 Average Carried 4 | 2 5 7 Final Capacity 25 | 8 8 25 Final Carried 8 | 2 8 5 Class Distribution -------------------- 100% | Mutant Dominant Class ---------------- Mutant | -10/Materials Mutant | -10/Mines Resources | -11 -10 -10 ----------- Run | Yrd Mat Min Matter Collected 300 | 188 112 . Remotely . | . . . Salvage Created 151 | . 112 39 Parts 10 | . 10 . Haulers Intercepted . | . . . Recyclers Shooed 1 | . 1 . Parts Field Recycled . | . . . Retrieved Matter . | . . . Parts Self-Destructed . | . . . Prevented . | . . . Parts Restored . | . . . Kills | -11 -10 -10 ------- Run | Yrd Mat Min Combat Hostiles Destroyed 14 | . 5 9 Guns 6 | . 5 1 AOE 8 | . . 8 Classes Destroyed 3 | . 2 1 Swarmer 3 | . 3 . Grunt 3 | . 2 1 Assembled 8 | . . 8 Best Kill Streak 9 | . 3 9 Combat Bots Only 9 | . 3 9 Max Kills in Single Turn 3 | . 1 3 Gunslinging . | . . . Exploded 3 | . . 3 Melee . | . . . Uniques/NPCs Destroyed . | . . . Combat | -11 -10 -10 -------- Run | Yrd Mat Min Hostile Shots Fired 60 | . 21 39 Missed 20 | . 10 10 Hits 40 | . 11 29 Melee 4 | . . 4 Projectile 36 | . 11 25 AOE 3 | . . 3 Critical Strikes 1 | . . 1 Part Disruptions 1 | . . 1 Damage Taken 785 | . 112 673 Core 277 | . 12 265 Absorbed by Shields . | . . . Core Remaining (%) 100 | 100 . . Volleys Fired 23 | . 10 13 Largest 2 | . 2 2 Hottest 70 | . 70 70 Shots Fired 39 | . 20 19 Gun 34 | . 20 14 Cannon . | . . . Launcher 5 | . . 5 Special . | . . . Kinetic 18 | . 10 8 Thermal 16 | . 10 6 Explosive 5 | . . 5 Electromagnetic . | . . . Robot Hit Streak 6 | . 3 6 Robot Miss Streak 2 | . 2 1 Penetration Max . | . . . Secondary Targets 2 | . 2 . Max Gunslinging Chain 1 | . 1 . Shots Hit Robots 23 | . 11 12 Core Hits 39 | . 8 31 Critical Kills . | . . . Critical Parts Destroyed . | . . . Critical Strikes . | . . . Melee Attacks . | . . . Impact . | . . . Slashing . | . . . Piercing . | . . . Sneak Attacks . | . . . Combat Hostiles . | . . . Follow-up Attacks . | . . . Damage Inflicted 889 | . 160 729 Guns 280 | . 160 120 Cannons . | . . . Explosions 609 | . . 609 Melee . | . . . Ramming . | . . . Kinetic 127 | . 70 57 Thermal 153 | . 90 63 Explosive 609 | . . 609 Electromagnetic . | . . . Impact . | . . . Slashing . | . . . Piercing . | . . . Highest Corruption 10 | . . 10 Average Corruption 8 | . . 8 Corruption Purged . | . . . Corruption Blocked . | . . . Overload Shots . | . . . Overflow Damage . | . . . Projectiles . | . . . Explosions . | . . . Melee . | . . . Knockbacks . | . . . Impact . | . . . Kinetic . | . . . Secondary . | . . . Self-Inflicted Damage 71 | . . 71 Shots 3 | . . 3 Rammed . | . . . Targets Rammed . | . . . Kicked . | . . . Crushed . | . . . Highest Temperature 127 | . 81 127 Average Temperature 47 | . 33 63 Received Heat Transfer 266 | . 48 218 Siege Activations . | . . . Martial Activations . | . . . Shielding Activations . | . . . Robots Disrupted . | . . . Combat Hostiles . | . . . Robots Corrupted . | . . . Combat Hostiles . | . . . Parts Fried . | . . . Impact Corruptions . | . . . Robots Melted . | . . . Combat Hostiles . | . . . Parts Melted 1 | . . 1 Heat Transferred 444 | . 259 185 Parts Sabotaged . | . . . Parts Stolen . | . . . Parts Stripped . | . . . Power Chain Reactions . | . . . Alert | -11 -10 -10 ------- Run | Yrd Mat Min Maximum Alert Level . | . . . Low Security (%) 100 | 100 100 100 Level 1 . | . . . Level 2 . | . . . Level 3 . | . . . Level 4 . | . . . Level 5 . | . . . High Security . | . . . Max Security . | . . . Peak Influence 63 | . 63 32 Initial 12 | . . 12 Average 26 | . 36 7 Influence Increases 167 | . 133 34 Destroy 0b10 Robot/C 120 | . 100 20 Destroy Leader 20 | . 20 . Successful Hack 13 | . 13 . Destroy Structure 14 | . . 14 Influence Decreases 167 | . 100 67 Entered New Map 21 | . . 21 Time Decay 110 | . 100 10 Lost Part 36 | . . 36 Squads Dispatched 2 | . 2 . Investigation 1 | . 1 . Extermination . | . . . Reinforcement 1 | . 1 . Assault . | . . . Garrison . | . . . Intercept . | . . . Searches Triggered . | . . . Construction Impeded . | . . . Haulers Reinforced . | . . . Active Scanning Responses . | . . . Cargo Convoy Interrupts . | . . . Stealth | -11 -10 -10 --------- Run | Yrd Mat Min Distress Signals . | . . . Communications Jammed . | . . . Distress Signals . | . . . Times Spotted 32 | . 8 24 Peak Tracking Total 16 | . 3 16 Tactical Retreats . | . . . Traps | -11 -10 -10 ------- Run | Yrd Mat Min Traps Triggered . | . . . Indirectly . | . . . Trap Hack Attempts . | . . . Triggered . | . . . Disarmed . | . . . Reprogrammed . | . . . Reused . | . . . Traps Extracted . | . . . Installed . | . . . Triggered . | . . . Machines | -11 -10 -10 ---------- Run | Yrd Mat Min Machines Disabled . | . . . Max in Single Turn . | . . . Machines Repaired . | . . . Machines Dismantled . | . . . Machines Sabotaged . | . . . Overloaded Fab Kills . | . . . Hacking | -11 -10 -10 --------- Run | Yrd Mat Min Machines Accessed 1 | . 1 . Terminals 1 | . 1 . Fabricators . | . . . Repair Stations . | . . . Recycling Units . | . . . Scanalyzers . | . . . Garrison Access . | . . . Total Hacks 3 | . 3 . Successful 3 | . 3 . Failed . | . . . Catastrophic . | . . . Database Lockouts . | . . . Manual . | . . . Terminals 3 | . 3 . Fabricators . | . . . Repair Stations . | . . . Recycling Units . | . . . Scanalyzers . | . . . Garrison Access . | . . . Terminal Hacks 3 | . 3 . Prototype ID Bank 1 | . 1 . Repair Station Index 1 | . 1 . Alert Level 1 | . 1 . Fabricator Hacks . | . . . Repair Station Hacks . | . . . Recycling Unit Hacks . | . . . Scanalyzer . | . . . Garrison Access Hacks . | . . . Unauthorized Hacks . | . . . Terminals . | . . . Fabricators . | . . . Repair Stations . | . . . Recycling Units . | . . . Scanalyzers . | . . . Garrison Access . | . . . Data Cores Recovered . | . . . Used . | . . . Hacking Detections 1 | . 1 . Full Trace Events 1 | . 1 . Feedback Events . | . . . Feedback Blocked . | . . . Robot Schematics Acquired . | . . . Robots Built . | . . . Authchips . | . . . Time . | . . . Total Robot Build Rating . | . . . Part Schematics Acquired . | . . . Parts Built . | . . . Authchips . | . . . Time . | . . . Total Part Build Rating . | . . . Part Studies Acquired . | . . . Parts Repaired . | . . . Time . | . . . Parts Recycled . | . . . Recycled Matter . | . . . Retrieved Matter . | . . . Retrieved Components . | . . . Parts Scanalyzed . | . . . Part Schematics Acquired . | . . . Parts Damaged . | . . . Bothacking | -11 -10 -10 ------------ Run | Yrd Mat Min Used RIF Installer . | . . . Robots Hacked . | . . . Non-combat . | . . . Combat . | . . . Robot Hacks Applied . | . . . Relay Couplers Released . | . . . Fabnet Peak Effective % . | . . . Robots Rewired . | . . . Allies Hacked . | . . . Hacks Repelled . | . . . Allies | -11 -10 -10 -------- Run | Yrd Mat Min Total Allies . | . . . Largest Group . | . . . Highest-Rated Group . | . . . Highest-Rated Ally . | . . . Total Orders . | . . . Ally Attacks . | . . . Total Damage . | . . . Kills . | . . . Allies Corrupted . | . . . Allies Melted . | . . . Intel | -11 -10 -10 ------- Run | Yrd Mat Min Active Infowar (turns) 162 | . 125 37 Terrain 162 | . 125 37 Robot Analysis Total . | . . . Derelict Logs Recovered . | . . . Drone Launches . | . . . Drone Recoveries . | . . . Exploration | -11 -10 -10 ------------- Run | Yrd Mat Min Turns Passed 297 | 54 206 37 Spaces Moved 263 | 53 209 1 Core 8 | 8 . . Treads . | . . . Legs . | . . . Wheels 255 | 45 209 1 Hover . | . . . Flight . | . . . Fastest Speed 50 | 50 80 80 Average Speed 79 | 75 80 80 Slowest Speed 80 | 80 80 80 Overloaded Moves . | . . . Propulsion Burnouts . | . . . Robots Hopped . | . . . Potential Cave-ins . | . . . Cave-ins Triggered . | . . . Exploration Rate (%) 12 | 3 27 7 Regions Visited 2 Branch Regions 1 Pre-discovered Areas . | . . . Known Exits Taken . | . . . Unknown Exits Taken 2 | 1 1 . Scrap Searched . | . . . Spaces Dug . | . . . Terrain Destroyed 19 | . . 19 Melee . | . . . Projectile . | . . . AOE 19 | . . 19 Terrain Rammed . | . . . Walls Destroyed . | . . . Machines Disabled . | . . . Actions | -11 -10 -10 --------- Run | Yrd Mat Min Total 312 | 66 228 18 Wait . | . . . Move 261 | 52 208 1 Hop . | . . . Pick Up 15 | 8 7 . Fast Attach . | . . . Attach 11 | 6 2 3 Detach 1 | . 1 . Swap 1 | . . 1 Drop . | . . . Fire 23 | . 10 13 Melee . | . . . Ram . | . . . Kick . | . . . Crush . | . . . Escape Stasis . | . . . Rewire . | . . . Trap . | . . . Miscellaneous . | . . . Route ------- -11/Scrapyard -10/Materials -10/Mines History --------- Turn | Location | Event 20 | -11/Scrapyard | Discovered new exit (range 16) 55 | -11/Scrapyard | Entered Materials 191 | -10/Materials | Discovered new exit (range 13) 261 | -10/Materials | Entered Mines 262 | -10/Mines | Assembled infested the area 267 | -10/Mines | Assisted by a Guerilla fighting off Assembled 289 | -10/Mines | Core integrity fell below 50% 289 | -10/Mines | Core integrity fell below 20% 294 | -10/Mines | System corruption reached 10% 298 | -10/Mines | Destroyed by as-84528 with Assembled Blade Last Messages --------------- 4J-IFI(h) destroyed. as-85999 destroyed. as-52589 destroyed. as-48799 destroyed. Wheel destroyed. System corrupted by crushing effect (+4). as-86716 destroyed. as-06909 destroyed. as-24062 destroyed. as-71983 destroyed. as-78519 destroyed. as-57730 destroyed. Grenade Launcher destroyed. System corrupted by crushing effect (+2). [Achievement: System Compromised] U-05 Engineer lays Concrete. Grenade Launcher destroyed. U-05 Engineer builds a Wall. Knocked back. Critical hit (Burn: +80). Map ----- +----------------------------------------------------+ | ????????????????????????????????????????? | | ????????????????????????????????????????? | | ????????????????????????????????????????? | | ????????????????????????????????????????? | | ????????????????????????????????????????? | | ????????????????????????????????????????? | | ????????????????????????????????????????? | | ????????????????????????????????????????? | | ????????????????????????????????????????? | | ??????????????????????????? ???????????? | | ??????????????????????????? #??????????? | | ??????????????????????????? #??????????? | | ??????????????????????????? ###????????? | | ??????????????????????????# ######???? | | ?????????????????????????? ##??? | | ?????????????????????????# < ##?? | | ????????????????#???????? ??? | | ????????????????????????## ??#?? | | ????????????????????????# ?????? | | ??????????????????????### a ??#???? | | ??????????????????????# #???????? | | ??????????????????????# a a ##?#?????? | | ?????????????????????## #??????#? | | ?????????????????????# a ##???????? | | ??????????????????????# a% #?????#?? | | ?????????????#????????# @ * ##??#????? | | ??????????????????????# = #????????? | | ?????????????????#????### % #????????? | | ????????????????????????## ##??#?????? | | ????????????????????????##u% ##?????#???? | | ????????????????????????? ??????????? | | ??????????????????? ????? # #?????????? | | ???????????????#????????##### #??????#??? | | ????????????????????????????? #?????????? | | ??????????????????????????????#?????????? | | ?????????????????????????#??????????????? | | ????????????????????????????????????????? | | ????????????????????????????????????????? | | ????????????????????????????????????????? | | ????????????????????????????????????????? | | ????????????????????????????????????????? | | ????????????????????????????????????????? | | ????????????????????????????????????????? | | ????????????????????????????????????????? | | ????????????????????????????????????????? | | ????????????????????????????????????????? | | ????????????????????????????????????????? | | ????????????????????????????????????????? | | ????????????????????????????????????????? | | ????????????????????????????????????????? | +----------------------------------------------------+ Best States ------------- Heat Dissipation 25 Energy Generation 10 Energy Capacity 125 Matter Stores 290 Matter Capacity 300 Sight Range 16 Terrain Scan Range 14 Terrain Scan Density 10 Evasion (%) 44 Item Schematics ----------------- None Robot Schematics ------------------ None Fabricated ------------ Nothing Repaired ---------- Nothing Studied --------- None Alien Tech Used ----------------- None Achievements -------------- System Compromised Challenges ------------ None Game ------ Seed AntimatterSmartAutohacker Manual? 0 Play Time 00:06:22 Cumulative 2.0 hours Start 2026.03.02 @ 21:34:51 End 2026.03.02 @ 21:40:02 Sessions 1 Manual Loads 0 Difficulty Rogue Special Mode None Game No. 4 Rogue 4 Adventurer 0 Explorer 0 Win Type - Total 0 Types 0/0/0/0/0/0/0/0/0/0 Lore% 1 Gallery% 4 Achievement% 6 Wizard Run 0 Options --------- Layout 1 ASCII 0 Keyboard 0 Movement Arrows Keybinds 0 Fullscreen 1 Font 16/SmallcapsGlow Map View 50x40 Zoom Use 0% Tactical HUD 0 Map Filters NONE Filters NONE Steam SD RUN: 091dcf9b-c0f7-4597-b842-c8093b34b0f1